bitfinex/quotes_BTCUSD_20250417
["timestamp","ask_amount","ask_price","bid_price","bid_amount"]
[1744898553841,0.0984,84349.0,84339.0,0.34]
[1744898554291,0.1024,84349.0,84339.0,0.34]
[1744898554497,0.0984,84349.0,84340.0,0.0221276]
[1744898554904,0.01185592,84346.0,84341.0,0.0221276]
[1744898555193,0.01185606,84345.0,84341.0,0.0221276]
[1744898555399,0.01185606,84345.0,84339.0,0.0001276]
[1744898555400,0.3302354,84340.0,84339.0,0.0001276]
[1744898556296,0.11944791,84340.0,84312.0,0.1407812]
[1744898556503,0.33168602,84322.0,84321.0,0.00213538]
[1744898557042,0.0945,84322.0,84321.0,0.00213538]
[1744898557215,0.33168602,84322.0,84321.0,0.00213538]
[1744898557839,0.33568602,84322.0,84321.0,0.00313538]
[1744898559145,0.01185986,84318.0,84307.0,0.34]
[1744898559322,0.23719009,84321.0,84309.0,0.01454085]
[1744898559545,0.01185958,84320.0,84309.0,0.02640197]
[1744898560490,0.24905149,84320.0,84310.0,0.01454085]
[1744898560946,0.01185944,84321.0,84310.0,0.04126485]
[1744898561180,0.01285958,84320.0,84310.0,0.01454085]
[1744898561320,0.01285958,84320.0,84310.0,0.02640183]
[1744898561518,0.01185958,84320.0,84310.0,0.02640183]
[1744898561745,0.34368099,84322.0,84311.0,0.34]
[1744898562363,0.01185958,84320.0,84311.0,0.34]
[1744898562762,0.01185958,84320.0,84310.0,0.36740183]
[1744898563138,0.24904876,84321.0,84311.0,0.001]
[1744898563601,0.01185944,84321.0,84310.0,0.36640183]
[1744898563938,0.0946356,84322.0,84311.0,0.24907527]
[1744898564144,0.01185944,84321.0,84310.0,0.35454085]
[1744898564349,0.01185944,84321.0,84310.0,0.38211646]
[1744898564554,0.01185944,84321.0,84311.0,0.01186084]
[1744898564762,0.0946356,84322.0,84320.0,0.23719165]
[1744898564983,0.0001356,84322.0,84321.0,0.59172968]
[1744898565187,0.0001356,84322.0,84321.0,0.71117759]
[1744898566445,0.0001356,84322.0,84321.0,0.57718883]
[1744898567262,0.0001356,84322.0,84321.0,0.71117759]
[1744898567589,0.0001356,84322.0,84321.0,0.71217759]
[1744898567590,0.0011356,84322.0,84321.0,0.71217759]
[1744898569167,0.0011356,84322.0,84321.0,0.71317759]
[1744898569376,0.0011356,84322.0,84321.0,0.47598876]
[1744898569756,0.0001356,84322.0,84321.0,0.71217759]
[1744898569961,0.0001356,84322.0,84321.0,0.71317759]
[1744898570889,0.0001356,84322.0,84321.0,0.71217759]
[1744898571100,0.0001356,84322.0,84321.0,0.71317759]
[1744898571581,0.0001356,84322.0,84321.0,0.35554085]
[1744898572387,0.0001356,84322.0,84321.0,0.59272968]
[1744898572588,0.0001356,84322.0,84321.0,0.59372968]
[1744898574205,0.0001356,84322.0,84321.0,0.25372968]
[1744898575010,0.0001356,84322.0,84321.0,0.37317759]
[1744898575614,0.0001356,84322.0,84321.0,0.12044791]
[1744898576091,0.0001356,84322.0,84321.0,0.35763674]
[1744898577223,0.0001356,84322.0,84321.0,0.35863674]
[1744898577693,0.0001356,84322.0,84321.0,0.37317759]
[1744898580647,0.0001356,84322.0,84321.0,0.12144791]
[1744898580849,0.0001356,84322.0,84321.0,0.13598876]
[1744898581004,0.0001356,84322.0,84321.0,0.37317759]
[1744898581609,0.0001356,84322.0,84321.0,0.13498876]
[1744898584476,0.0455356,84322.0,84321.0,0.13498876]
[1744898585344,0.0944356,84322.0,84321.0,0.001]
[1744898588728,0.33262162,84322.0,84321.0,0.001]
[1744898588927,0.01186042,84314.0,84311.0,0.02292]
[1744898589331,0.28521415,84312.0,84310.0,0.01471463]
[1744898589535,0.23721697,84311.0,84310.0,0.01471463]
[1744898589662,0.23722883,84307.0,84300.0,0.14032]
[1744898590078,0.23723948,84303.0,84289.0,0.15885741]
[1744898590279,0.01186281,84297.0,84289.0,0.06945687]
[1744898590464,0.0462,84293.0,84286.0,0.14032]
[1744898590664,0.0462,84293.0,84288.0,0.0378291]
[1744898590891,0.0478,84292.0,84288.0,0.0378291]
[1744898591316,0.0478,84292.0,84288.0,0.04969318]
[1744898591513,0.0468,84292.0,84288.0,0.0378291]
[1744898591714,0.0468,84292.0,84288.0,0.03828068]
[1744898591917,0.24913999,84291.0,84288.0,0.01509796]
[1744898592412,0.01186366,84291.0,84283.0,0.03683916]
[1744898592736,0.0468,84292.0,84288.0,0.001]
[1744898593144,0.0468,84292.0,84288.0,0.002]
[1744898593361,0.0468,84292.0,84288.0,0.01186408]
[1744898593575,0.0468,84292.0,84288.0,0.01451135]
[1744898593790,0.001,84291.0,84288.0,0.01186408]
[1744898593981,0.0468,84292.0,84289.0,0.01186394]
[1744898594314,0.0478,84292.0,84289.0,0.01186394]
[1744898594657,0.0478,84292.0,84289.0,0.24914206]
[1744898594829,0.0478,84292.0,84289.0,0.01186394]
[1744898595043,0.0468,84292.0,84289.0,0.01186394]
[1744898595215,0.0450269,84292.0,84289.0,0.01186394]
[1744898595619,0.0450269,84292.0,84289.0,0.01286394]
[1744898596027,0.0450269,84292.0,84290.0,0.23727372]
[1744898596442,0.001,84291.0,84289.0,0.2501421]
[1744898596642,0.001,84291.0,84289.0,0.001]
[1744898597183,0.001,84291.0,84289.0,0.2382785]
[1744898597388,0.0450269,84292.0,84289.0,0.25014244]
[1744898597658,0.0470269,84292.0,84289.0,0.25014244]
[1744898597877,0.0450269,84292.0,84289.0,0.01286394]
[1744898598070,0.0450269,84292.0,84288.0,0.26374383]
[1744898598226,0.002,84291.0,84288.0,0.26374383]
[1744898598642,0.002,84291.0,84288.0,0.01459841]
[1744898598844,0.002,84291.0,84268.0,0.30853829]
[1744898598845,0.01186422,84287.0,84274.0,0.01228735]
[1744898599050,0.23727888,84289.0,84274.0,0.01228735]
[1744898599051,0.002,84291.0,84283.0,0.01186478]
[1744898599260,0.01386366,84291.0,84289.0,0.001]
[1744898599455,0.23727607,84290.0,84289.0,0.001]
[1744898599846,0.23728816,84286.0,84282.0,0.34]
[1744898600069,0.01186436,84286.0,84278.0,0.01186549]
[1744898600290,0.23730358,84281.0,84276.0,0.34046655]
[1744898600459,0.05896521,84280.0,84272.0,0.00883131]
[1744898600641,0.0471,84280.0,84272.0,0.00883131]
[1744898601005,0.0471,84280.0,84274.0,0.24960646]
[1744898601208,0.0471,84280.0,84274.0,0.0004213]
[1744898601420,0.29627009,84280.0,84276.0,0.001]
[1744898601626,0.0471,84280.0,84276.0,0.001]
[1744898601825,0.05896521,84280.0,84274.0,0.0004213]
[1744898602024,0.0471,84280.0,84274.0,0.0004213]
[1744898602239,0.0471,84280.0,84272.0,0.2373254]
[1744898602604,0.01186577,84276.0,84267.0,8e-05]
[1744898602803,0.0451,84269.0,84251.0,0.14036]
[1744898603007,0.0451,84269.0,84262.0,0.01186774]
[1744898603207,0.0451,84269.0,84262.0,0.24921999]
[1744898603720,0.0451,84269.0,84263.0,0.0118676]
[1744898603926,0.0451,84269.0,84263.0,0.24921887]
[1744898604127,0.0451,84269.0,84268.0,0.23733801]
[1744898604705,0.0451,84269.0,84266.0,0.01517796]
[1744898604999,0.0471,84269.0,84261.0,0.23735646]
[1744898605204,0.0471,84269.0,84263.0,0.23735176]
[1744898605408,0.0481,84269.0,84264.0,0.01186746]
[1744898605606,0.0481,84269.0,84263.0,0.24921936]
[1744898605891,0.0471,84269.0,84263.0,0.24921936]
[1744898606325,0.0461,84269.0,84264.0,0.01186746]
[1744898606532,0.06196676,84269.0,84262.0,0.34]
[1744898606734,0.0501,84269.0,84264.0,0.01456478]
[1744898607031,0.01186704,84267.0,84257.0,0.01186845]
[1744898607242,0.28343678,84269.0,84246.0,0.06220084]
[1744898607243,0.24923049,84260.0,84246.0,0.06220084]
[1744898607438,0.34722265,84262.0,84252.0,0.01186915]
[1744898607655,0.01186788,84261.0,84252.0,0.24925183]
[1744898607852,0.098,84262.0,84253.0,0.24924865]
[1744898608052,0.0613683,84258.0,84252.0,0.01521211]
[1744898608252,0.0495,84258.0,84252.0,0.01521211]
[1744898608458,0.0495,84258.0,84252.0,0.01186915]
[1744898608654,0.0613683,84258.0,84249.0,0.01186957]
[1744898609179,0.0495,84258.0,84248.0,0.24926378]
[1744898609353,0.0495,84258.0,84250.0,0.35186943]
[1744898609555,0.0495,84258.0,84250.0,0.34]
[1744898609782,0.237369,84257.0,84250.0,0.34]
[1744898609991,0.0495,84258.0,84250.0,0.34]
[1744898610175,0.01186887,84254.0,84250.0,0.34]
[1744898610371,0.0525,84258.0,84250.0,0.34]
[1744898610372,0.0525,84258.0,84250.0,0.01504682]
[1744898610606,0.0495,84258.0,84250.0,0.01504682]
[1744898610807,0.23737491,84255.0,84247.0,0.00237386]
[1744898610981,0.23737841,84254.0,84246.0,0.34]
[1744898611184,0.23739329,84249.0,84246.0,0.34]
[1744898611384,0.01186845,84257.0,84240.0,0.01187084]
[1744898611524,0.01186873,84255.0,84241.0,0.45944791]
[1744898611729,0.28519717,84247.0,84246.0,0.01473495]
[1744898611928,0.33469717,84247.0,84246.0,0.01473495]
[1744898612138,0.23739999,84246.0,84241.0,0.34]
[1744898612544,0.23740337,84245.0,84239.0,0.00013587]
[1744898612741,0.23739999,84246.0,84239.0,0.00013587]
[1744898612943,0.23740185,84246.0,84239.0,0.00013587]
[1744898613143,0.0993,84247.0,84239.0,0.00013587]
[1744898613348,0.2374169,84240.0,84239.0,0.01526436]
[1744898613596,0.23744759,84230.0,84219.0,0.3488]
[1744898613794,0.05857253,84228.0,84218.0,0.02745951]
[1744898613998,0.0467,84228.0,84218.0,0.02461484]
[1744898614201,0.0467,84228.0,84218.0,0.0127409]
[1744898614421,0.0467,84228.0,84218.0,0.02461484]
[1744898614630,0.0467,84228.0,84220.0,0.01187366]
[1744898614853,0.0467,84228.0,84220.0,0.24934652]
[1744898615200,0.0467,84228.0,84218.0,0.02734071]
[1744898615387,0.0467,84228.0,84219.0,0.0118738]
[1744898615533,0.0467,84228.0,84219.0,0.24934955]
[1744898615740,0.23745458,84227.0,84218.0,0.03921465]
[1744898615941,0.29602566,84228.0,84218.0,0.02734071]
[1744898616142,0.0467,84228.0,84218.0,0.02734071]
[1744898616352,0.23745507,84227.0,84218.0,0.02734071]
[1744898616560,0.23745961,84225.0,84218.0,0.02734071]
[1744898616745,0.01187295,84225.0,84218.0,0.02734071]
[1744898617186,0.0118731,84224.0,84218.0,0.02734071]
[1744898617424,0.23746482,84223.0,84218.0,0.02734071]
[1744898617662,0.24934137,84222.0,84218.0,0.02734071]
[1744898617918,0.06057352,84221.0,84218.0,0.02734071]
[1744898618217,0.0487,84221.0,84218.0,0.02734071]
[1744898618626,0.3353761,84219.0,84211.0,0.2337409]
[1744898618825,0.01187352,84221.0,84204.0,0.0004212]
[1744898618826,0.23751558,84205.0,84204.0,0.0004212]
[1744898619056,0.33541558,84205.0,84204.0,0.00087202]
[1744898619229,0.01098975,84196.0,84185.0,0.0118786]
[1744898619442,0.01187733,84194.0,84186.0,0.11944791]
[1744898619605,0.01187718,84195.0,84185.0,0.11944791]
[1744898619807,0.01187718,84195.0,84185.0,0.13132651]
[1744898620019,0.01187704,84196.0,84188.0,0.01187817]
[1744898620223,0.01187676,84198.0,84188.0,0.01187817]
[1744898620423,0.24940441,84201.0,84192.0,0.01187761]
[1744898620591,0.001,84194.0,84191.0,0.26759457]
[1744898620948,0.01187676,84198.0,84191.0,0.01187775]
[1744898621210,0.01187676,84198.0,84190.0,0.01187789]
[1744898621389,0.01187676,84198.0,84189.0,0.35187803]
[1744898621390,0.0467,84195.0,84189.0,0.35187803]
[1744898621592,0.0467,84195.0,84190.0,0.01187789]
[1744898621791,0.0467,84195.0,84188.0,0.01187817]
[1744898622089,0.0467,84195.0,84187.0,0.24944454]
[1744898622390,0.0467,84195.0,84189.0,0.01187803]
[1744898622598,0.0467,84195.0,84188.0,0.01187817]
[1744898622798,0.01081238,84187.0,84176.0,0.02164]
[1744898622998,0.0453,84186.0,84179.0,0.23758894]
[1744898623176,0.0453,84186.0,84177.0,0.22447417]
[1744898623342,0.0576786,84185.0,84166.0,0.23762564]
[1744898623539,0.0576786,84185.0,84176.0,0.23759608]
[1744898623788,0.0458,84185.0,84178.0,0.24947057]
[1744898623986,0.0458,84185.0,84178.0,0.13047057]
[1744898624182,0.0458,84185.0,84179.0,0.01187944]
[1744898624381,0.0576786,84185.0,84178.0,0.01187958]
[1744898624565,0.0576786,84185.0,84176.0,0.16047677]
[1744898624766,0.0626786,84185.0,84178.0,0.01187958]
[1744898625002,0.0626786,84185.0,84168.0,0.34]
[1744898625445,0.0626786,84185.0,84176.0,0.23759738]
[1744898625592,0.0646786,84185.0,84178.0,0.01187958]
[1744898625790,0.0528,84185.0,84179.0,0.01187944]
[1744898626045,0.0508,84185.0,84178.0,0.01187958]
[1744898626253,0.0508,84185.0,84179.0,0.23758815]
[1744898626450,0.0508,84185.0,84184.0,0.23757483]
[1744898626880,0.0458,84185.0,84184.0,0.23757483]
[1744898627280,0.0518,84185.0,84184.0,0.23757483]
[1744898627584,0.0458,84185.0,84184.0,0.23757483]
[1744898628012,0.0528,84185.0,84184.0,0.23757483]
[1744898628428,0.009,84185.0,84184.0,0.23757483]
[1744898628642,0.009,84185.0,84184.0,0.23857483]
[1744898628900,0.007,84185.0,84184.0,0.69802274]
[1744898629085,0.009,84185.0,84184.0,0.69802274]
[1744898629301,0.009,84185.0,84184.0,0.72125243]
[1744898629499,0.002,84185.0,84184.0,0.72125243]
[1744898629729,0.00045169,84205.0,84204.0,0.2375184]
[1744898630328,0.00045169,84205.0,84204.0,0.25949176]
[1744898630772,0.00045169,84205.0,84204.0,0.61403261]
[1744898630982,0.00845169,84205.0,84204.0,0.73348052]
[1744898631471,0.00845169,84205.0,84204.0,0.73448052]
[1744898632050,0.01145169,84205.0,84204.0,0.73448052]
[1744898632596,0.00345169,84205.0,84204.0,0.73448052]
[1744898632800,0.00045169,84205.0,84204.0,0.73448052]
[1744898633003,0.00145169,84205.0,84204.0,0.73448052]
[1744898633173,0.00045169,84205.0,84204.0,0.73448052]
[1744898633597,0.00145169,84205.0,84204.0,0.73448052]
[1744898635227,0.00145169,84205.0,84204.0,0.73548052]
[1744898636047,0.00145169,84205.0,84204.0,0.74649772]
[1744898636477,0.00145169,84205.0,84204.0,0.87263687]
[1744898637129,0.00145169,84205.0,84204.0,0.73195687]
[1744898637330,0.00145169,84205.0,84204.0,0.87616052]
[1744898639897,0.00145169,84205.0,84204.0,0.86161967]
[1744898640530,0.00145169,84205.0,84204.0,0.02397336]
[1744898640740,0.00245169,84205.0,84184.0,0.00868884]
[1744898640939,0.00345169,84205.0,84202.0,0.24939687]
[1744898641207,0.00345169,84205.0,84192.0,0.23754957]
[1744898641208,0.01187592,84204.0,84195.0,0.01187718]
[1744898641422,0.01187592,84204.0,84184.0,0.00868884]
[1744898641423,0.0468,84201.0,84194.0,0.23754646]
[1744898641637,0.0468,84201.0,84196.0,0.01187704]
[1744898641855,0.0468,84201.0,84182.0,0.01187902]
[1744898641856,0.01187789,84190.0,84182.0,0.01187902]
[1744898642070,0.0472,84188.0,84186.0,0.24944675]
[1744898643231,0.0472,84188.0,84185.0,0.0118786]
[1744898643462,0.0502,84188.0,84186.0,0.23756683]
[1744898643661,0.28476637,84188.0,84176.0,0.01836484]
[1744898643861,0.01187902,84182.0,84176.0,0.01187987]
[1744898644094,0.01187902,84182.0,84175.0,0.01188001]
[1744898644095,0.01187916,84181.0,84175.0,0.01188001]
[1744898644303,0.2494665,84180.0,84174.0,0.01839089]
[1744898644502,0.0494,84172.0,84170.0,0.01188071]
[1744898644702,0.0494,84172.0,84170.0,0.2494947]
[1744898645039,0.0494,84172.0,84171.0,0.34]
[1744898645403,0.0494,84172.0,84169.0,0.01188085]
[1744898645606,0.0494,84172.0,84170.0,0.01880502]
[1744898645811,0.0494,84172.0,84159.0,0.00885268]
[1744898645812,0.01188057,84171.0,84161.0,0.01188198]
[1744898646024,0.01188057,84171.0,84162.0,0.2447634]
[1744898646232,0.3003408,84172.0,84164.0,0.23763019]
[1744898646513,0.3003408,84172.0,84166.0,0.01188128]
[1744898646708,0.3003408,84172.0,84161.0,0.26783548]
[1744898646709,0.24950122,84168.0,84161.0,0.26783548]
[1744898646975,0.0457,84171.0,84165.0,0.23762826]
[1744898647155,0.01188085,84169.0,84162.0,0.2495179]
[1744898647358,0.01188114,84167.0,84162.0,0.01188184]
[1744898647497,0.01188071,84170.0,84164.0,0.01188156]
[1744898647693,0.01188071,84170.0,84162.0,0.01188184]
[1744898648226,0.01188085,84169.0,84163.0,0.0118817]
[1744898648558,0.01188085,84169.0,84164.0,0.01188156]
[1744898648759,0.0457,84171.0,84165.0,0.01188142]
[1744898648919,0.0457,84171.0,84166.0,0.23762482]
[1744898649096,0.0477,84171.0,84165.0,0.01188142]
[1744898649319,0.01188071,84170.0,84149.0,0.34]
[1744898649524,0.23761999,84168.0,84166.0,0.02210812]
[1744898649931,0.0454,84168.0,84167.0,0.02210812]
[1744898650337,0.01188128,84166.0,84160.0,0.01188212]
[1744898650776,0.01188128,84166.0,84160.0,0.2376417]
[1744898650975,0.24950396,84167.0,84162.0,0.01188184]
[1744898651179,0.24950396,84167.0,84160.0,0.2376417]
[1744898651180,0.01188156,84164.0,84159.0,0.23764439]
[1744898651354,0.0454,84168.0,84166.0,0.23762458]
[1744898652182,0.0514,84168.0,84166.0,0.23762458]
[1744898652715,0.0454,84168.0,84166.0,0.23762458]
[1744898652913,0.01188128,84166.0,84161.0,0.2495213]
[1744898653347,0.01188128,84166.0,84148.0,0.01816931]
[1744898653348,0.01188156,84164.0,84157.0,0.01188255]
[1744898653520,0.01188156,84164.0,84156.0,0.23765189]
[1744898653845,0.01188142,84165.0,84154.0,0.01188297]
[1744898653846,0.23763077,84165.0,84154.0,0.01188297]
[1744898654142,0.0544,84168.0,84159.0,0.01188227]
[1744898654323,0.23762343,84167.0,84161.0,0.01188198]
[1744898654463,0.29790192,84168.0,84161.0,0.24952112]
[1744898654666,0.23762342,84167.0,84161.0,0.24952112]
[1744898655236,0.0484,84168.0,84165.0,0.01188142]
[1744898655496,0.0484,84168.0,84166.0,0.23762564]
[1744898655670,0.006,84166.0,84164.0,0.24951079]
[1744898655865,0.006,84166.0,84164.0,0.13051079]
[1744898656266,0.006,84166.0,84165.0,0.23762846]
[1744898656630,0.0457,84171.0,84170.0,0.23761435]
[1744898656827,0.0457,84171.0,84170.0,0.57761435]
[1744898657233,0.00045141,84172.0,84171.0,0.57761152]
[1744898659837,0.00445141,84172.0,84171.0,0.57761152]
[1744898662298,0.00445141,84172.0,84171.0,0.71160028]
[1744898662914,0.00445141,84172.0,84171.0,0.72032106]
[1744898663939,0.0455,84190.0,84171.0,0.72032106]
[1744898663940,0.0489,84193.0,84192.0,0.23755226]
[1744898664344,0.002,84204.0,84203.0,0.23752122]
[1744898665596,0.002,84204.0,84203.0,0.57765709]
[1744898666076,0.002,84204.0,84203.0,0.73051767]
[1744898666697,0.004,84204.0,84203.0,0.73051767]
[1744898667158,0.004,84204.0,84203.0,0.73952784]
[1744898667389,0.002,84204.0,84203.0,0.73952784]
[1744898667980,0.0465,84224.0,84223.0,0.57746482]
[1744898668189,0.0463442,84224.0,84223.0,0.57746482]
[1744898668949,0.0463442,84224.0,84221.0,0.01187352]
[1744898669151,0.0463442,84224.0,84222.0,0.20946729]
[1744898669574,0.0473442,84224.0,84222.0,0.09046729]
[1744898669784,0.0503442,84224.0,84223.0,0.001]
[1744898669982,0.0498,84232.0,84229.0,0.2374479]
[1744898670318,0.0498,84232.0,84230.0,0.23744227]
[1744898670522,0.01187211,84231.0,84226.0,0.01187281]
[1744898670736,0.01187211,84231.0,84216.0,0.23748228]
[1744898670737,0.01187239,84229.0,84221.0,0.24934387]
[1744898670934,0.06167197,84232.0,84226.0,0.24932858]
[1744898671096,0.0498,84232.0,84228.0,0.01187253]
[1744898671277,0.0498,84232.0,84229.0,0.01187239]
[1744898671702,0.0498,84232.0,84229.0,0.24931907]
[1744898672120,0.0498,84232.0,84230.0,0.23744509]
[1744898672432,0.0498,84232.0,84231.0,0.23744227]
[1744898672608,0.0498,84232.0,84227.0,0.24932505]
[1744898672936,0.0498,84232.0,84231.0,0.23744227]
[1744898673115,0.1008,84232.0,84231.0,0.23744227]
[1744898673324,0.1008,84232.0,84229.0,0.13031752]
[1744898673524,0.0978,84232.0,84229.0,0.13031752]
[1744898673744,0.23744227,84231.0,84227.0,0.01187267]
[1744898673958,0.1048,84232.0,84230.0,0.23744401]
[1744898674165,0.1008,84232.0,84230.0,0.11844401]
[1744898674682,0.1058,84232.0,84229.0,0.0123164]
[1744898675130,0.1058,84232.0,84229.0,0.2374479]
[1744898675335,0.1028,84232.0,84229.0,0.2374479]
[1744898675535,0.1028,84232.0,84226.0,0.23745566]
[1744898675748,0.23744704,84230.0,84216.0,0.01187422]
[1744898675955,0.23745999,84225.0,84217.0,0.11848023]
[1744898676157,0.24931734,84230.0,84225.0,0.01187295]
[1744898676383,0.24931468,84231.0,84226.0,0.01187281]
[1744898676607,0.1038,84232.0,84230.0,0.001]
[1744898676800,0.1038,84232.0,84231.0,0.23744227]
[1744898677001,0.0998,84232.0,84231.0,0.23744227]
[1744898677182,0.0998,84232.0,84229.0,0.24931908]
[1744898677183,0.0998,84232.0,84230.0,0.11844407]
[1744898677624,0.0998,84232.0,84231.0,0.11844227]
[1744898677820,0.0998,84232.0,84229.0,0.24931806]
[1744898678021,0.1058,84232.0,84229.0,0.13131806]
[1744898678248,0.01187281,84226.0,84221.0,0.01187352]
[1744898678428,0.23744955,84229.0,84225.0,0.34]
[1744898678603,0.23744955,84229.0,84225.0,0.221]
[1744898678804,0.002,84231.0,84224.0,0.0118731]
[1744898678973,0.25131602,84231.0,84227.0,0.01187267]
[1744898679170,0.002,84231.0,84228.0,0.01187253]
[1744898679371,0.2493147,84231.0,84227.0,0.01187267]
[1744898679605,0.002,84229.0,84227.0,0.01187267]
[1744898679799,0.002,84229.0,84226.0,0.24932636]
[1744898680192,0.0978,84232.0,84228.0,0.23744917]
[1744898680428,0.003,84231.0,84229.0,0.001]
[1744898680631,0.003,84231.0,84226.0,0.23745396]
[1744898680877,0.003,84231.0,84227.0,0.24932378]
[1744898681046,0.005,84229.0,84228.0,0.23745072]
[1744898681248,0.003,84231.0,84228.0,0.01187253]
[1744898681450,0.003,84231.0,84227.0,0.01187267]
[1744898681592,0.009,84231.0,84229.0,0.001]
[1744898682047,0.003,84231.0,84226.0,0.01187281]
[1744898682260,0.23744461,84231.0,84226.0,0.01187281]
[1744898682431,0.24931672,84231.0,84226.0,0.01187281]
[1744898682631,0.002,84229.0,84226.0,0.01187281]
[1744898682831,0.002,84229.0,84226.0,0.249329]
[1744898683048,0.002,84229.0,84224.0,0.0118731]
[1744898683264,0.01187211,84231.0,84226.0,0.24932893]
[1744898683463,0.01187211,84231.0,84226.0,0.13032893]
[1744898683672,0.24932404,84228.0,84222.0,0.01187338]
[1744898683973,0.23748819,84215.0,84208.0,0.01187535]
[1744898684171,0.0485,84214.0,84211.0,0.01187493]
[1744898684524,0.0457,84213.0,84211.0,0.01187493]
[1744898684984,0.01187479,84212.0,84206.0,0.01187563]
[1744898685144,0.01187493,84211.0,84206.0,0.01187563]
[1744898685483,0.01187521,84209.0,84204.0,0.24952977]
[1744898685673,0.24937698,84210.0,84204.0,0.13052977]
[1744898685826,0.24937244,84212.0,84205.0,0.01187577]
[1744898686025,0.01187507,84210.0,84206.0,0.01187563]
[1744898686230,0.24938529,84208.0,84203.0,0.01987182]
[1744898686429,0.24938762,84207.0,84206.0,0.001]
[1744898686732,0.01187549,84207.0,84200.0,0.01187648]
[1744898686963,0.01187549,84207.0,84202.0,0.0118762]
[1744898687181,0.23751005,84207.0,84202.0,0.0118762]
[1744898687387,0.2503879,84208.0,84206.0,0.001]
[1744898687585,0.24938851,84206.0,84200.0,0.23752721]
[1744898687937,0.24938543,84207.0,84201.0,0.23752574]
[1744898688138,0.01187549,84207.0,84201.0,0.11852574]
[1744898688341,0.24938605,84207.0,84202.0,0.0118762]
[1744898688518,0.25038784,84208.0,84207.0,0.23750994]
[1744898688519,0.001,84208.0,84207.0,0.23750994]
[1744898689385,0.001,84208.0,84207.0,0.57750994]
[1744898689821,0.001,84208.0,84207.0,0.67750994]
[1744898690365,0.003,84208.0,84207.0,0.67750994]
[1744898690720,0.001,84208.0,84207.0,0.67750994]
[1744898691295,0.23747413,84220.0,84212.0,0.23749584]
[1744898691429,0.04583544,84213.0,84212.0,0.23749584]
[1744898691630,0.00013544,84213.0,84212.0,0.57749584]
[1744898693909,0.00313544,84213.0,84212.0,0.57749584]
[1744898694428,0.00013544,84213.0,84212.0,0.57749584]
[1744898694632,0.00013544,84213.0,84212.0,0.34]
[1744898694826,0.00013544,84213.0,84212.0,0.56649584]
[1744898695025,0.00013544,84213.0,84212.0,0.56449584]
[1744898695370,0.00013544,84213.0,84210.0,0.01187507]
[1744898695570,0.00013544,84213.0,84211.0,0.23749665]
[1744898695571,0.00613544,84213.0,84211.0,0.23749665]
[1744898695890,0.00013544,84213.0,84212.0,0.23749584]
[1744898696087,0.00213544,84213.0,84212.0,0.08497213]
[1744898696710,0.00513544,84213.0,84212.0,0.08497213]
[1744898696910,0.00713544,84213.0,84212.0,0.08497213]
[1744898697378,0.00713544,84213.0,84212.0,0.42497213]
[1744898697496,0.00513544,84213.0,84212.0,0.42497213]
[1744898697894,0.00713544,84213.0,84212.0,0.42497213]
[1744898700372,0.00713544,84213.0,84212.0,0.54542004]
[1744898702238,0.00213544,84213.0,84212.0,0.54542004]
[1744898702662,0.00413544,84213.0,84212.0,0.54542004]
[1744898703069,0.00213544,84213.0,84212.0,0.54542004]
[1744898705886,0.00213544,84213.0,84212.0,0.001]
[1744898706100,0.05023544,84213.0,84212.0,0.23849584]
[1744898706507,0.05023544,84213.0,84212.0,0.57849584]
[1744898708741,0.01187606,84203.0,84186.0,1.03274514]
[1744898708868,0.01187563,84206.0,84204.0,0.34]
[1744898709071,0.24938559,84207.0,84204.0,0.34]
[1744898709267,0.01187535,84208.0,84203.0,0.23752122]
[1744898709517,0.01187479,84212.0,84207.0,0.24938431]
[1744898709734,0.2493748,84211.0,84204.0,0.01187592]
[1744898709938,0.01187493,84211.0,84206.0,0.01187563]
[1744898710130,0.23651896,84204.0,84201.0,0.36315732]
[1744898710306,0.002,84206.0,84202.0,0.24940024]
[1744898710506,0.24938288,84208.0,84204.0,0.24939387]
[1744898710747,0.09633544,84213.0,84207.0,0.01187549]
[1744898711047,0.33382871,84213.0,84208.0,0.01187535]
[1744898711184,0.09633544,84213.0,84210.0,0.01187507]
[1744898711394,0.09633544,84213.0,84211.0,0.23749652]
[1744898711648,0.09633544,84213.0,84210.0,0.24937612]
[1744898712180,0.09633544,84213.0,84209.0,0.24937837]
[1744898712392,0.33382963,84213.0,84209.0,0.24937837]
[1744898712594,0.01187521,84209.0,84190.0,0.26507935]
[1744898712797,0.01187549,84207.0,84204.0,0.2493937]
[1744898712999,0.24937891,84211.0,84206.0,0.24938822]
[1744898713147,0.24937924,84210.0,84205.0,0.23751003]
[1744898713344,0.24938343,84208.0,84204.0,0.01187592]
[1744898713584,0.24938343,84208.0,84204.0,0.2375184]
[1744898713846,0.24938343,84208.0,84202.0,0.0118762]
[1744898713847,0.01187549,84207.0,84197.0,0.0118769]
[1744898714064,0.24940578,84201.0,84197.0,0.0118769]
[1744898714320,0.01187634,84201.0,84198.0,0.01187676]
[1744898714647,0.01187592,84204.0,84199.0,0.01187662]
[1744898714846,0.01187592,84204.0,84201.0,0.2375262]
[1744898715289,0.01187592,84204.0,84200.0,0.01187648]
[1744898715488,0.24940575,84201.0,84197.0,0.34]
[1744898715646,0.24940575,84201.0,84197.0,0.0118769]
[1744898715843,0.24940575,84201.0,84198.0,0.11853482]
[1744898716252,0.24940575,84201.0,84197.0,0.01141172]
[1744898716450,0.23752987,84200.0,84197.0,0.24894899]
[1744898716651,0.24940575,84201.0,84197.0,0.24894899]
[1744898716878,0.24940575,84201.0,84185.0,0.2375719]
[1744898716879,0.06077747,84193.0,84185.0,0.2375719]
[1744898717085,0.01187775,84191.0,84188.0,0.01187817]
[1744898717548,0.29832731,84193.0,84189.0,0.01187803]
[1744898717851,0.0489,84193.0,84192.0,0.23755226]
[1744898718231,0.0489,84193.0,84184.0,0.01187874]
[1744898718232,0.06077747,84193.0,84186.0,0.27225571]
[1744898718427,0.01187775,84191.0,84187.0,0.35187831]
[1744898718755,0.0489,84193.0,84190.0,0.01187789]
[1744898718912,0.0489,84193.0,84186.0,0.27225571]
[1744898718913,0.28744945,84193.0,84189.0,0.01187803]
[1744898719252,0.24943039,84192.0,84189.0,0.01187803]
[1744898719454,0.24943039,84192.0,84184.0,0.23757258]
[1744898719455,0.01187789,84190.0,84184.0,0.01187874]
[1744898719718,0.01187775,84191.0,84186.0,0.02342213]
[1744898719925,0.01187789,84190.0,84186.0,0.02342213]
[1744898720069,0.01187789,84190.0,84183.0,0.01187888]
[1744898720070,0.24944316,84188.0,84183.0,0.23757759]
[1744898720271,0.24943697,84190.0,84186.0,0.01187845]
[1744898720471,0.0489,84193.0,84190.0,0.24943579]